[Event "AUT-ch 2018"]
[Site "Vienna"]
[Date "2018.07.27"]
[Round "7"]
[White "Morgunov, Marc"]
[Black "Schroll, Gerhard"]
[Result "1-0"]
[ECO "C42"]
[WhiteElo "2362"]
[BlackElo "2295"]
[Annotator "NA"]
[PlyCount "72"]
[EventDate "2018.07.22"]
[EventType "swiss"]
[EventCountry "AUT"]
[SourceTitle "playchess.com"]
[Source "ChessBase"]
[SourceQuality "1"]
[TimeControl "40/5400+30:1800+30"]

1. e4 {[%emt 0:00:00]} e5 {[%emt 0:00:03]} 2. Nf3 {[%emt 0:00:00]} Nf6 {[%emt 0:00:08]} 3. Nxe5 {[%emt 0:02:05]} d6 {[%emt 0:00:06]} 4. Nf3 {[%emt 0:00:19]} Nxe4 {[%emt 0:00:06]} 5. d4 {[%emt 0:03:03]} d5 {[%emt 0:01:13]} 6. Bd3 {[%emt 0:01:20]} Be7 {[%emt 0:00:12]} 7. O-O {[%emt 0:00:25]} Nc6 {[%emt 0:00:59]} 8. Re1 {[%emt 0:01:42]} Bg4 {[%emt 0:00:54]} 9. c4 {[%emt 0:07:26]} Nf6 {[%emt 0:01:59]} 10. cxd5 {[%emt 0:03:54]} Qxd5 {[%emt 0:03:46]} 11. Nc3 {[%emt 0:02:41]} Bxf3 {[%emt 0:02:12]} 12. Nxd5 {[%emt 0:02:27]} Bxd1 {[%emt 0:01:03]} 13. Nxf6+ {[%emt 0:00:07]} gxf6 {[%emt 0:00:39]} 14. d5 {[%emt 0:00:08]} Ne5 {[%emt 0:12:17]} 15. Rxd1 {[%emt 0:01:13]} Nxd3 {[%emt 0:00:12]} 16. Rxd3 {[%emt 0:00:05]} O-O-O {[%emt 0:01:08]} 17. Bd2 {[%emt 0:03:30]} Bd6 {[%emt 0:03:08]} 18. Rd1 {[%emt 0:01:26]} Rd7 {[%emt 0:04:49]} 19. Re1 {[%emt 0:05:23]} Rhd8 {[%emt 0:03:58]} 20. Rh3 {[%emt 0:05:32]} Be5 {[%emt 0:03:55]} 21. Bc3 {[%emt 0:00:10]} Rxd5 {[%emt 0:03:12]} 22. Rxh7 {[%emt 0:00:39]} Bxc3 {[%emt 0:00:44]} 23. bxc3 {[%emt 0:00:08]} Re5 {[%emt 0:00:10]} 24. Kf1 {[%emt 0:01:34]} Rf8 {[%emt 0:17:51]} 25. Rxe5 {[%emt 0:05:40]} fxe5 {[%emt 0:00:02]} 26. h4 {[%emt 0:00:09]} Kd7 {[%emt 0:00:18]} 27. Ke2 {[%emt 0:01:35]} Ke6 {[%emt 0:01:34]} 28. g4 {[%emt 0:01:40]} b5 {[%emt 0:03:20]} 29. Rh6+ {[%emt 0:04:49]} Kd5 {[%emt 0:00:20]} 30. Rf6 {[%emt 0:01:30]} c5 {[%emt 0:00:38]} 31. h5 {[%emt 0:03:22]} a5 {[%emt 0:00:55]} 32. h6 {[%emt 0:01:45]} Rh8 {[%emt 0:00:30]} 33. g5 {[%emt 0:01:29]} Rh7 {[%emt 0:00:06]} 34. Rxf7 {[%emt 0:00:11]} Rxf7 {[%emt 0:00:41]} 35. g6 {[%emt 0:00:09]} Ke6 {[%emt 0:00:06]} 36. h7 {[%emt 0:00:24]} Rxf2+ {[%emt 0:00:14]} 1-0

[Event "AUT-ch 2018"]
[Site "Vienna"]
[Date "2018.07.27"]
[Round "7"]
[White "Knoll, Hermann"]
[Black "Kummer, Helmut"]
[Result "0-1"]
[ECO "B40"]
[WhiteElo "2338"]
[BlackElo "2290"]
[Annotator "NA"]
[PlyCount "98"]
[EventDate "2018.07.22"]
[EventType "swiss"]
[EventCountry "AUT"]
[SourceTitle "playchess.com"]
[Source "ChessBase"]
[SourceQuality "1"]
[TimeControl "40/5400+30:1800+30"]

1. e4 {[%emt 0:00:00]} c5 {[%emt 0:00:00]} 2. Nf3 {[%emt 0:00:40]} e6 {[%emt 0:00:00]} 3. g3 {[%emt 0:02:18]} Nc6 {[%emt 0:01:32]} 4. Bg2 {[%emt 0:01:55]} Nf6 {[%emt 0:06:12]} 5. Qe2 {[%emt 0:02:40]} d5 {[%emt 0:07:35]} 6. e5 {[%emt 0:03:47]} Nd7 {[%emt 0:00:04]} 7. O-O {[%emt 0:00:52]} Qc7 {[%emt 0:00:22]} 8. Re1 {[%emt 0:00:06]} b5 {[%emt 0:01:07]} 9. d3 {[%emt 0:00:55]} Be7 {[%emt 0:01:14]} 10. Bf4 {[%emt 0:00:24]} a5 {[%emt 0:03:42]} 11. Nc3 {[%emt 0:00:20]} Qb6 {[%emt 0:03:14]} 12. a4 {[%emt 0:03:07]} b4 {[%emt 0:11:31]} 13. Nb5 {[%emt 0:00:22]} h6 {[%emt 0:05:53]} 14. h4 {[%emt 0:00:24]} Ba6 {[%emt 0:00:54]} 15. c4 {[%emt 0:00:12]} bxc3 {[%emt 0:00:55]} 16. bxc3 {[%emt 0:01:16]} Bxb5 {[%emt 0:04:33]} 17. axb5 {[%emt 0:01:39]} Qxb5 {[%emt 0:00:03]} 18. h5 {[%emt 0:02:34]} Qa6 {[%emt 0:02:51]} 19. Nd2 {[%emt 0:00:47]} Ra7 {[%emt 0:07:09]} 20. c4 {[%emt 0:06:26]} Nb4 {[%emt 0:01:19]} 21. cxd5 {[%emt 0:04:47]} exd5 {[%emt 0:02:48]} 22. Qg4 {[%emt 0:03:38]} g5 {[%emt 0:00:44]} 23. e6 {[%emt 0:04:20]} Nf6 {[%emt 0:00:42]} 24. exf7+ {[%emt 0:00:29]} Kxf7 {[%emt 0:02:50]} 25. Qf5 {[%emt 0:00:13]} gxf4 {[%emt 0:05:05]} 26. Nf3 {[%emt 0:00:08]} Rg8 {[%emt 0:03:05]} 27. Ne5+ {[%emt 0:01:44]} Ke8 {[%emt 0:00:43]} 28. Qxf4 {[%emt 0:01:05]} Rg5 {[%emt 0:03:18]} 29. Nf3 {[%emt 0:04:23]} Nxd3 {[%emt 0:03:05]} 30. Qb8+ {[%emt 0:00:54]} Kf7 {[%emt 0:00:10]} 31. Nxg5+ {[%emt 0:01:00]} hxg5 {[%emt 0:00:04]} 32. Re3 {[%emt 0:02:01]} c4 {[%emt 0:02:50]} 33. Rb1 {[%emt 0:01:16]} Ra8 {[%emt 0:10:43]} 34. Qc7 {[%emt 0:02:15]} Qd6 {[%emt 0:00:04]} 35. Qb7 {[%emt 0:00:05]} Rd8 {[%emt 0:04:31]} 36. Rb6 {[%emt 0:01:29]} Qd7 {[%emt 0:00:35]} 37. Qa6 {[%emt 0:01:01]} Nc5 {[%emt 0:00:54]} 38. Qxa5 {[%emt 0:01:10]} Nce4 {[%emt 0:02:24]} 39. Bxe4 {[%emt 0:00:59]} Nxe4 {[%emt 0:02:05]} 40. Rf3+ {[%emt 0:00:46]} Bf6 {[%emt 0:31:46]} 41. Qa6 {[%emt 0:36:20]} Qe7 {[%emt 0:00:06]} 42. h6 {[%emt 0:00:14]} c3 {[%emt 0:00:00]} 43. Rc6 {[%emt 0:00:00]} Rd6 {[%emt 0:00:00]} 44. h7 {[%emt 0:00:00]} Rxc6 {[%emt 0:00:00]} 45. Qxc6 {[%emt 0:00:00]} Kg7 {[%emt 0:00:00]} 46. Qxd5 {[%emt 0:00:00]} Kxh7 {[%emt 0:00:00]} 47. Re3 {[%emt 0:00:00]} c2 {[%emt 0:00:00]} 48. Re1 {[%emt 0:00:00]} Bb2 {[%emt 0:00:00]} 49. f3 {[%emt 0:00:00]} Qc5+ {[%emt 0:00:00]} 0-1

[Event "AUT-ch 2018"]
[Site "Vienna"]
[Date "2018.07.27"]
[Round "7"]
[White "Sandhoefner, Florian"]
[Black "Sadilek, Maximilian"]
[Result "1-0"]
[ECO "E00"]
[WhiteElo "2327"]
[BlackElo "2224"]
[Annotator "NA"]
[PlyCount "79"]
[EventDate "2018.07.22"]
[EventType "swiss"]
[EventCountry "AUT"]
[SourceTitle "playchess.com"]
[Source "ChessBase"]
[SourceQuality "1"]
[TimeControl "40/5400+30:1800+30"]

1. d4 {[%emt 0:00:00]} e6 {[%emt 0:00:39]} 2. c4 {[%emt 0:00:00]} Bb4+ {[%emt 0:04:12]} 3. Bd2 {[%emt 0:00:46]} Bxd2+ {[%emt 0:00:05]} 4. Qxd2 {[%emt 0:00:02]} Nf6 {[%emt 0:00:08]} 5. Nc3 {[%emt 0:00:32]} d5 {[%emt 0:00:16]} 6. e3 {[%emt 0:00:52]} O-O {[%emt 0:00:10]} 7. Nf3 {[%emt 0:00:36]} Nbd7 {[%emt 0:04:23]} 8. Rc1 {[%emt 0:02:49]} c6 {[%emt 0:11:42]} 9. Bd3 {[%emt 0:01:47]} Qe7 {[%emt 0:00:20]} 10. cxd5 {[%emt 0:05:36]} exd5 {[%emt 0:00:18]} 11. Qc2 {[%emt 0:00:58]} Re8 {[%emt 0:03:07]} 12. O-O {[%emt 0:05:41]} Ne4 {[%emt 0:14:48]} 13. b4 {[%emt 0:04:44]} a6 {[%emt 0:19:30]} 14. a4 {[%emt 0:05:49]} Ndf6 {[%emt 0:12:48]} 15. b5 {[%emt 0:05:49]} cxb5 {[%emt 0:06:15]} 16. axb5 {[%emt 0:00:33]} Bd7 {[%emt 0:00:18]} 17. bxa6 {[%emt 0:03:59]} bxa6 {[%emt 0:00:29]} 18. Qa2 {[%emt 0:05:01]} Bb5 {[%emt 0:01:57]} 19. Ne5 {[%emt 0:07:19]} Bxd3 {[%emt 0:14:17]} 20. Nxd3 {[%emt 0:00:43]} Qd6 {[%emt 0:00:54]} 21. Nxe4 {[%emt 0:02:57]} Nxe4 {[%emt 0:02:51]} 22. Nc5 {[%emt 0:01:05]} Rac8 {[%emt 0:01:13]} 23. Qxa6 {[%emt 0:12:36]} Rc6 {[%emt 0:00:22]} 24. Nxe4 {[%emt 0:00:49]} Rxa6 {[%emt 0:00:08]} 25. Nxd6 {[%emt 0:00:02]} Rxd6 {[%emt 0:00:05]} 26. Rc5 {[%emt 0:00:25]} f5 {[%emt 0:00:51]} 27. Rc7 {[%emt 0:04:13]} Red8 {[%emt 0:01:14]} 28. Rb1 {[%emt 0:01:07]} R8d7 {[%emt 0:00:14]} 29. Rbb7 {[%emt 0:02:32]} Rxc7 {[%emt 0:00:09]} 30. Rxc7 {[%emt 0:00:04]} h5 {[%emt 0:00:40]} 31. g3 {[%emt 0:00:40]} Kh7 {[%emt 0:00:10]} 32. Kg2 {[%emt 0:00:20]} Kg6 {[%emt 0:00:45]} 33. Kf3 {[%emt 0:00:16]} Kf6 {[%emt 0:00:49]} 34. h4 {[%emt 0:00:12]} g5 {[%emt 0:00:41]} 35. hxg5+ {[%emt 0:00:09]} Kxg5 {[%emt 0:00:03]} 36. Rc8 {[%emt 0:00:24]} Kf6 {[%emt 0:01:01]} 37. Kf4 {[%emt 0:00:55]} Re6 {[%emt 0:00:28]} 38. Rd8 {[%emt 0:01:47]} Re4+ {[%emt 0:00:36]} 39. Kf3 {[%emt 0:00:04]} Ke6 {[%emt 0:00:33]} 40. Rh8 {[%emt 0:00:13]} 1-0

[Event "AUT-ch 2018"]
[Site "Vienna"]
[Date "2018.07.27"]
[Round "7"]
[White "Mostbauer, Florian"]
[Black "Windhager, Hannes"]
[Result "1-0"]
[ECO "A45"]
[WhiteElo "2319"]
[BlackElo "2203"]
[Annotator "NA"]
[PlyCount "85"]
[EventDate "2018.07.22"]
[EventType "swiss"]
[EventCountry "AUT"]
[SourceTitle "playchess.com"]
[Source "ChessBase"]
[SourceQuality "1"]
[TimeControl "40/5400+30:1800+30"]

1. d4 {[%emt 0:00:00]} Nf6 {[%emt 0:00:05]} 2. Bf4 {[%emt 0:00:00]} c5 {[%emt 0:00:10]} 3. d5 {[%emt 0:01:01]} b5 {[%emt 0:00:32]} 4. a4 {[%emt 0:05:19]} b4 {[%emt 0:01:40]} 5. g4 {[%emt 0:06:10]} d6 {[%emt 0:09:05]} 6. g5 {[%emt 0:02:36]} Nfd7 {[%emt 0:10:35]} 7. e4 {[%emt 0:07:24]} g6 {[%emt 0:05:11]} 8. Nd2 {[%emt 0:01:06]} Bg7 {[%emt 0:01:18]} 9. Rb1 {[%emt 0:01:00]} a5 {[%emt 0:10:32]} 10. h4 {[%emt 0:05:11]} Ne5 {[%emt 0:06:50]} 11. Bb5+ {[%emt 0:24:45]} Bd7 {[%emt 0:01:55]} 12. Be2 {[%emt 0:02:46]} f5 {[%emt 0:11:50]} 13. gxf6 {[%emt 0:02:56]} Bxf6 {[%emt 0:00:58]} 14. Bg3 {[%emt 0:02:47]} Nf7 {[%emt 0:07:22]} 15. f4 {[%emt 0:01:38]} e5 {[%emt 0:05:47]} 16. dxe6 {[%emt 0:05:41]} Bxe6 {[%emt 0:00:05]} 17. Ngf3 {[%emt 0:01:03]} O-O {[%emt 0:02:53]} 18. O-O {[%emt 0:01:11]} d5 {[%emt 0:03:08]} 19. Ng5 {[%emt 0:06:01]} Nxg5 {[%emt 0:01:01]} 20. fxg5 {[%emt 0:00:14]} Bd4+ {[%emt 0:00:59]} 21. Kh2 {[%emt 0:00:14]} Nc6 {[%emt 0:02:26]} 22. exd5 {[%emt 0:04:24]} Bxd5 {[%emt 0:01:33]} 23. Nb3 {[%emt 0:00:55]} Rxf1 {[%emt 0:03:12]} 24. Qxf1 {[%emt 0:00:22]} Bxb3 {[%emt 0:03:55]} 25. cxb3 {[%emt 0:00:07]} Ne5 {[%emt 0:00:57]} 26. Qg2 {[%emt 0:04:29]} Ra7 {[%emt 0:01:35]} 27. Rd1 {[%emt 0:00:39]} Qd7 {[%emt 0:03:44]} 28. Qe4 {[%emt 0:00:43]} Nf7 {[%emt 0:02:07]} 29. Bc4 {[%emt 0:05:49]} Qe7 {[%emt 0:00:44]} 30. Qc6 {[%emt 0:02:23]} Qd7 {[%emt 0:01:00]} 31. Qf3 {[%emt 0:01:27]} Qf5 {[%emt 0:01:30]} 32. Qxf5 {[%emt 0:00:31]} gxf5 {[%emt 0:00:04]} 33. Rf1 {[%emt 0:00:12]} Kg7 {[%emt 0:00:53]} 34. Rxf5 {[%emt 0:00:11]} Bxb2 {[%emt 0:00:40]} 35. Rxc5 {[%emt 0:00:19]} Bd4 {[%emt 0:00:38]} 36. Rd5 {[%emt 0:00:08]} Bc3 {[%emt 0:00:17]} 37. Kh3 {[%emt 0:00:11]} h6 {[%emt 0:00:21]} 38. Kg4 {[%emt 0:01:49]} hxg5 {[%emt 0:00:09]} 39. hxg5 {[%emt 0:00:14]} Re7 {[%emt 0:01:06]} 40. Kf5 {[%emt 0:02:07]} Ra7 {[%emt 0:30:53]} 41. Bf4 {[%emt 0:31:58]} Be1 {[%emt 0:00:00]} 42. Rc5 {[%emt 0:00:00]} Re7 {[%emt 0:00:00]} 43. Rc7 {[%emt 0:00:00]} 1-0

[Event "AUT-ch 2018"]
[Site "Vienna"]
[Date "2018.07.27"]
[Round "7"]
[White "Vitouch, Anatol"]
[Black "Fauland, Alexander"]
[Result "0-1"]
[ECO "A45"]
[WhiteElo "2317"]
[BlackElo "2419"]
[Annotator "NA"]
[PlyCount "76"]
[EventDate "2018.07.22"]
[EventType "swiss"]
[EventCountry "AUT"]
[SourceTitle "playchess.com"]
[Source "ChessBase"]
[SourceQuality "1"]
[TimeControl "40/5400+30:1800+30"]

1. d4 {[%emt 0:00:00]} Nf6 {[%emt 0:00:48]} 2. Bg5 {[%emt 0:00:00]} e6 {[%emt 0:01:10]} 3. e4 {[%emt 0:00:00]} h6 {[%emt 0:00:39]} 4. Bxf6 {[%emt 0:00:00]} Qxf6 {[%emt 0:00:07]} 5. c3 {[%emt 0:00:16]} d6 {[%emt 0:00:07]} 6. Bd3 {[%emt 0:00:41]} Nd7 {[%emt 0:04:41]} 7. Ne2 {[%emt 0:00:23]} c6 {[%emt 0:02:58]} 8. O-O {[%emt 0:00:40]} e5 {[%emt 0:00:25]} 9. f4 {[%emt 0:00:50]} Qe7 {[%emt 0:05:52]} 10. Nd2 {[%emt 0:00:41]} g6 {[%emt 0:05:04]} 11. f5 {[%emt 0:04:16]} gxf5 {[%emt 0:02:34]} 12. exf5 {[%emt 0:01:02]} d5 {[%emt 0:08:34]} 13. dxe5 {[%emt 0:20:34]} Nxe5 {[%emt 0:00:21]} 14. Nf3 {[%emt 0:13:25]} Ng4 {[%emt 0:05:43]} 15. Qd2 {[%emt 0:01:00]} h5 {[%emt 0:00:40]} 16. Nf4 {[%emt 0:02:35]} Kd8 {[%emt 0:02:11]} 17. Rae1 {[%emt 0:01:37]} Qf6 {[%emt 0:03:51]} 18. c4 {[%emt 0:05:16]} dxc4 {[%emt 0:08:34]} 19. Bxc4+ {[%emt 0:02:30]} Kc7 {[%emt 0:00:47]} 20. Ng5 {[%emt 0:21:07]} Bc5+ {[%emt 0:06:42]} 21. Kh1 {[%emt 0:00:04]} Rd8 {[%emt 0:03:47]} 22. Nd3 {[%emt 0:01:30]} Be3 {[%emt 0:05:50]} 23. Rxe3 {[%emt 0:06:53]} Qxg5 {[%emt 0:00:07]} 24. Rf4 {[%emt 0:01:42]} Nxe3 {[%emt 0:02:37]} 25. Qxe3 {[%emt 0:00:32]} Rd6 {[%emt 0:02:25]} 26. h4 {[%emt 0:01:20]} Qf6 {[%emt 0:12:54]} 27. Ne5 {[%emt 0:02:25]} Bd7 {[%emt 0:05:43]} 28. Nxf7 {[%emt 0:00:37]} Rd1+ {[%emt 0:03:38]} 29. Kh2 {[%emt 0:00:07]} Re8 {[%emt 0:01:50]} 30. Qxa7 {[%emt 0:00:11]} Qxb2 {[%emt 0:00:11]} 31. Qa5+ {[%emt 0:07:03]} Kb8 {[%emt 0:01:00]} 32. Rf3 {[%emt 0:01:48]} Qd4 {[%emt 0:00:50]} 33. Bf1 {[%emt 0:03:21]} Qxh4+ {[%emt 0:00:50]} 34. Kg1 {[%emt 0:00:04]} Rd5 {[%emt 0:01:57]} 35. Qb6 {[%emt 0:01:08]} Bxf5 {[%emt 0:01:03]} 36. Nd6 {[%emt 0:01:18]} Rxd6 {[%emt 0:00:25]} 37. Rxf5 {[%emt 0:00:07]} Rf6 {[%emt 0:00:30]} 38. Ra5 {[%emt 0:01:18]} Rxf1+ {[%emt 0:00:13]} 0-1

[Event "AUT-ch 2018"]
[Site "Vienna"]
[Date "2018.07.27"]
[Round "7"]
[White "Wallner, Joachim"]
[Black "Ager, Josef"]
[Result "1-0"]
[ECO "A01"]
[WhiteElo "2311"]
[BlackElo "2154"]
[Annotator "NA"]
[PlyCount "53"]
[EventDate "2018.07.22"]
[EventType "swiss"]
[EventCountry "AUT"]
[SourceTitle "playchess.com"]
[Source "ChessBase"]
[SourceQuality "1"]
[TimeControl "40/5400+30:1800+30"]

1. b3 {[%emt 0:00:00]} g6 {[%emt 0:00:18]} 2. Bb2 {[%emt 0:00:00]} Nf6 {[%emt 0:00:05]} 3. Nf3 {[%emt 0:01:19]} Bg7 {[%emt 0:00:10]} 4. g3 {[%emt 0:00:35]} O-O {[%emt 0:00:08]} 5. Bg2 {[%emt 0:00:02]} Nc6 {[%emt 0:00:19]} 6. O-O {[%emt 0:01:32]} a6 {[%emt 0:00:29]} 7. c4 {[%emt 0:01:04]} Rb8 {[%emt 0:00:45]} 8. d4 {[%emt 0:05:58]} d6 9. Nbd2 {[%emt 0:00:30]} b5 {[%emt 0:07:17]} 10. d5 {[%emt 0:02:57]} Na5 {[%emt 0:00:08]} 11. cxb5 {[%emt 0:00:37]} axb5 {[%emt 0:00:12]} 12. Nd4 {[%emt 0:02:53]} e5 {[%emt 0:10:50]} 13. Nc6 {[%emt 0:05:53]} Nxc6 {[%emt 0:00:06]} 14. dxc6 {[%emt 0:00:04]} Nh5 {[%emt 0:01:46]} 15. b4 {[%emt 0:03:39]} f5 {[%emt 0:04:41]} 16. Nb3 {[%emt 0:03:02]} f4 {[%emt 0:01:42]} 17. Na5 {[%emt 0:00:41]} Qe8 {[%emt 0:04:48]} 18. Nb7 {[%emt 0:13:18]} Kh8 {[%emt 0:03:12]} 19. Qd3 {[%emt 0:08:13]} g5 {[%emt 0:04:44]} 20. a4 {[%emt 0:01:05]} Nf6 {[%emt 0:00:42]} 21. Qxb5 {[%emt 0:02:10]} Bxb7 {[%emt 0:04:11]} 22. cxb7 {[%emt 0:00:05]} Qxb5 {[%emt 0:00:04]} 23. axb5 {[%emt 0:00:04]} e4 {[%emt 0:00:10]} 24. Ra7 {[%emt 0:01:31]} d5 {[%emt 0:01:20]} 25. Rc1 {[%emt 0:03:38]} Ne8 {[%emt 0:01:57]} 26. Bxg7+ {[%emt 0:00:37]} Kxg7 {[%emt 0:00:06]} 27. Bf1 1-0

[Event "AUT-ch 2018"]
[Site "Vienna"]
[Date "2018.07.27"]
[Round "7"]
[White "Gerhold, Michael"]
[Black "Hapala, Elisabeth"]
[Result "1-0"]
[ECO "D05"]
[WhiteElo "2254"]
[BlackElo "2131"]
[Annotator "NA"]
[PlyCount "37"]
[EventDate "2018.07.22"]
[EventType "swiss"]
[EventCountry "AUT"]
[SourceTitle "playchess.com"]
[Source "ChessBase"]
[SourceQuality "1"]
[TimeControl "40/5400+30:1800+30"]

1. d4 {[%emt 0:00:00]} Nf6 {[%emt 0:00:15]} 2. Nf3 {[%emt 0:00:00]} e6 {[%emt 0:00:21]} 3. e3 {[%emt 0:00:00]} c5 {[%emt 0:01:05]} 4. Bd3 {[%emt 0:00:12]} d5 {[%emt 0:01:55]} 5. b3 {[%emt 0:00:18]} Nc6 {[%emt 0:00:55]} 6. O-O {[%emt 0:00:37]} Be7 {[%emt 0:01:52]} 7. Bb2 {[%emt 0:00:50]} O-O {[%emt 0:00:38]} 8. c4 {[%emt 0:02:07]} cxd4 {[%emt 0:07:59]} 9. exd4 {[%emt 0:00:21]} b6 {[%emt 0:01:07]} 10. Nc3 {[%emt 0:01:01]} Bb7 {[%emt 0:02:25]} 11. Rc1 {[%emt 0:00:56]} Rc8 {[%emt 0:00:37]} 12. Qe2 {[%emt 0:00:08]} dxc4 {[%emt 0:12:16]} 13. bxc4 {[%emt 0:00:49]} Nxd4 {[%emt 0:01:18]} 14. Nxd4 {[%emt 0:00:10]} Qxd4 {[%emt 0:00:02]} 15. Nd5 {[%emt 0:03:24]} Qc5 {[%emt 0:00:22]} 16. Bxf6 {[%emt 0:02:12]} gxf6 {[%emt 0:06:18]} 17. Nxe7+ {[%emt 0:00:50]} Qxe7 {[%emt 0:00:04]} 18. Qg4+ {[%emt 0:00:10]} Kh8 {[%emt 0:00:03]} 19. Qh4 {[%emt 0:00:06]} 1-0

[Event "AUT-ch 2018"]
[Site "Vienna"]
[Date "2018.07.27"]
[Round "7"]
[White "Ly, Dominik"]
[Black "Hiermann, Dietmar"]
[Result "1/2-1/2"]
[ECO "D37"]
[WhiteElo "2217"]
[BlackElo "2202"]
[Annotator "NA"]
[PlyCount "95"]
[EventDate "2018.07.22"]
[EventType "swiss"]
[EventCountry "AUT"]
[SourceTitle "playchess.com"]
[Source "ChessBase"]
[SourceQuality "1"]
[TimeControl "40/5400+30:1800+30"]

1. d4 {[%emt 0:00:00]} Nf6 {[%emt 0:00:34]} 2. c4 {[%emt 0:00:00]} e6 {[%emt 0:01:12]} 3. Nc3 {[%emt 0:00:04]} d5 {[%emt 0:00:54]} 4. Nf3 {[%emt 0:00:15]} Be7 {[%emt 0:01:36]} 5. Bf4 {[%emt 0:00:22]} O-O {[%emt 0:00:57]} 6. e3 {[%emt 0:00:23]} c6 {[%emt 0:03:40]} 7. h3 {[%emt 0:00:23]} Nbd7 {[%emt 0:00:19]} 8. a3 {[%emt 0:00:11]} dxc4 {[%emt 0:03:52]} 9. Bxc4 {[%emt 0:00:13]} Nd5 {[%emt 0:00:09]} 10. Bh2 {[%emt 0:01:10]} Nxc3 {[%emt 0:01:29]} 11. bxc3 {[%emt 0:00:09]} Qa5 {[%emt 0:01:36]} 12. Qc2 {[%emt 0:02:41]} b6 {[%emt 0:04:33]} 13. O-O {[%emt 0:14:41]} Ba6 {[%emt 0:03:40]} 14. Bxa6 {[%emt 0:00:35]} Qxa6 {[%emt 0:00:01]} 15. e4 {[%emt 0:00:17]} Rac8 {[%emt 0:01:45]} 16. a4 {[%emt 0:09:03]} Rfd8 {[%emt 0:06:40]} 17. Rad1 {[%emt 0:01:49]} Bf6 {[%emt 0:17:23]} 18. Bd6 {[%emt 0:10:10]} g6 {[%emt 0:03:58]} 19. e5 {[%emt 0:06:08]} Bg7 {[%emt 0:00:06]} 20. Qe4 {[%emt 0:05:51]} Nf8 {[%emt 0:09:49]} 21. Qf4 {[%emt 0:03:04]} Rd7 {[%emt 0:17:27]} 22. h4 {[%emt 0:03:36]} Qxa4 {[%emt 0:05:08]} 23. Ng5 {[%emt 0:03:34]} Bh6 {[%emt 0:07:52]} 24. Rd3 {[%emt 0:10:57]} Rcd8 {[%emt 0:03:34]} 25. Qg4 {[%emt 0:07:07]} Rxd6 {[%emt 0:02:43]} 26. exd6 {[%emt 0:00:13]} Rxd6 {[%emt 0:00:17]} 27. Qg3 {[%emt 0:00:35]} Rd5 {[%emt 0:01:01]} 28. Ne4 {[%emt 0:04:09]} Bg7 {[%emt 0:00:13]} 29. Qf3 {[%emt 0:06:01]} Qa6 {[%emt 0:01:12]} 30. Rdd1 {[%emt 0:00:20]} Nd7 {[%emt 0:00:25]} 31. Qf4 {[%emt 0:01:20]} Qc8 {[%emt 0:01:04]} 32. c4 {[%emt 0:03:22]} Rf5 {[%emt 0:00:03]} 33. Qg3 {[%emt 0:01:12]} Ra5 {[%emt 0:00:19]} 34. Qe3 {[%emt 0:00:51]} Nf6 {[%emt 0:00:24]} 35. Ra1 {[%emt 0:02:49]} Rxa1 {[%emt 0:00:46]} 36. Rxa1 {[%emt 0:00:06]} Nxe4 {[%emt 0:00:03]} 37. Qxe4 {[%emt 0:00:06]} Qd7 {[%emt 0:00:12]} 38. Rd1 {[%emt 0:00:30]} h5 {[%emt 0:00:50]} 39. Rd3 {[%emt 0:01:23]} Bf6 {[%emt 0:00:23]} 40. g3 {[%emt 0:03:03]} Kg7 {[%emt 0:30:25]} 41. Qe3 {[%emt 0:30:14]} b5 {[%emt 0:01:50]} 42. cxb5 {[%emt 0:00:00]} cxb5 {[%emt 0:00:00]} 43. Qd2 {[%emt 0:00:00]} Qd5 {[%emt 0:00:00]} 44. Qc3 {[%emt 0:00:00]} Bd8 {[%emt 0:00:00]} 45. Re3 {[%emt 0:00:00]} Bf6 {[%emt 0:00:00]} 46. Rd3 {[%emt 0:00:00]} Bd8 {[%emt 0:00:00]} 47. Re3 {[%emt 0:00:00]} Bf6 {[%emt 0:01:33]} 48. Rd3 1/2-1/2

[Event "AUT-ch 2018"]
[Site "Vienna"]
[Date "2018.07.27"]
[Round "7"]
[White "Peyrer, Konstantin"]
[Black "Froewis, Annika"]
[Result "1-0"]
[ECO "D00"]
[WhiteElo "2209"]
[BlackElo "2128"]
[Annotator "NA"]
[PlyCount "83"]
[EventDate "2018.07.22"]
[EventType "swiss"]
[EventCountry "AUT"]
[SourceTitle "playchess.com"]
[Source "ChessBase"]
[SourceQuality "1"]
[TimeControl "40/5400+30:1800+30"]

1. d4 {[%emt 0:00:00]} d5 {[%emt 0:00:07]} 2. Bf4 {[%emt 0:00:00]} Nf6 {[%emt 0:00:42]} 3. e3 {[%emt 0:00:00]} c5 {[%emt 0:00:41]} 4. c3 {[%emt 0:00:00]} Nc6 {[%emt 0:00:31]} 5. Nd2 {[%emt 0:00:00]} e6 {[%emt 0:00:25]} 6. Ngf3 {[%emt 0:00:00]} cxd4 {[%emt 0:00:51]} 7. exd4 {[%emt 0:00:07]} Nh5 {[%emt 0:00:18]} 8. Be3 {[%emt 0:01:02]} Bd6 {[%emt 0:00:27]} 9. Ne5 {[%emt 0:01:12]} g6 {[%emt 0:00:37]} 10. Ndf3 {[%emt 0:00:37]} f6 {[%emt 0:03:55]} 11. Nxc6 {[%emt 0:00:53]} bxc6 {[%emt 0:00:02]} 12. Bh6 {[%emt 0:00:08]} e5 {[%emt 0:04:18]} 13. Qa4 {[%emt 0:06:39]} Bd7 {[%emt 0:06:20]} 14. g4 {[%emt 0:02:32]} e4 {[%emt 0:18:43]} 15. gxh5 {[%emt 0:04:26]} exf3 {[%emt 0:00:06]} 16. Bd3 {[%emt 0:01:11]} g5 {[%emt 0:05:12]} 17. O-O-O {[%emt 0:04:51]} f5 {[%emt 0:04:56]} 18. Bg7 {[%emt 0:05:53]} Rg8 {[%emt 0:03:46]} 19. Be5 {[%emt 0:01:40]} Bxe5 {[%emt 0:08:21]} 20. Rhe1 {[%emt 0:00:20]} Kf7 {[%emt 0:06:30]} 21. dxe5 {[%emt 0:02:35]} Be6 {[%emt 0:06:22]} 22. Qxc6 {[%emt 0:06:11]} Qb6 {[%emt 0:01:37]} 23. Qxb6 {[%emt 0:02:31]} axb6 {[%emt 0:00:02]} 24. a3 {[%emt 0:01:48]} g4 {[%emt 0:04:55]} 25. h4 {[%emt 0:05:08]} Kg7 {[%emt 0:10:56]} 26. Bb5 {[%emt 0:04:31]} Rad8 {[%emt 0:02:26]} 27. Rd4 {[%emt 0:01:18]} Kh6 {[%emt 0:01:07]} 28. Kd2 {[%emt 0:00:09]} Kxh5 {[%emt 0:00:48]} 29. Ke3 {[%emt 0:00:06]} Kxh4 {[%emt 0:06:56]} 30. Rh1+ {[%emt 0:00:20]} Kg5 {[%emt 0:00:02]} 31. Rxh7 {[%emt 0:00:07]} Rh8 {[%emt 0:02:29]} 32. Rg7+ {[%emt 0:00:23]} Kh6 {[%emt 0:01:12]} 33. Rb7 {[%emt 0:01:12]} Rb8 {[%emt 0:00:35]} 34. Re7 {[%emt 0:00:06]} Bg8 {[%emt 0:00:31]} 35. Kf4 {[%emt 0:00:15]} Kg6 {[%emt 0:00:32]} 36. Be8+ {[%emt 0:00:11]} Kh6 {[%emt 0:00:23]} 37. Rd1 {[%emt 0:00:31]} Rxe8 {[%emt 0:00:43]} 38. Rxe8 {[%emt 0:00:06]} Kg7 {[%emt 0:00:18]} 39. e6 {[%emt 0:01:39]} Rh6 {[%emt 0:00:43]} 40. Re1 {[%emt 0:00:29]} Rf6 {[%emt 0:30:32]} 41. Rxg8+ {[%emt 0:30:11]} Kxg8 {[%emt 0:00:11]} 42. e7 {[%emt 0:00:07]} 1-0